Workbook

Sheet Form
I20: …................................
I22: ลายเซ็นต์พนักงาน

Sheet Form (2) (hidden)

Sheet Print
A1: 1 | C1: =VLOOKUP(C5,TblMonthPeriod,2,0)&" "& VLOOKUP(C5,TblMonthPeriod,3,0) &" "&Print!C6 -> 1-15 มกราคม 2565 | E1: =VLOOKUP(C5,TblMonth12,2,0)&" "&Print!C6 -> มกราคม 2565
A2: เดือน | C2: =VLOOKUP(C5,TblMonthPeriod,2,0)&" "& VLOOKUP(C5,TblMonthPeriod,3,0) &" "&Print!C6 -> 1-15 มกราคม 2565 | F2: ( แบบจ่าย 2 งวด / เดือน)
A4: วันที่จ่าย | C4: 16 กุมภาพันธ์ 2565 | E4: แสดงตัวอย่างลำดับที่ | F4: 1
A5: ประจำงวดเดือน | C5: =A1+0 -> 1
A6: ปี(เปลี่ยนเป็นปีปัจุบัน) | C6: 2565 | E6: เลขประจำตัว | F6: =IFERROR(Sheet1!B38,"No Data") -> 63001
A7: จำนวนพนักงานทั้งหมด | C7: =VLOOKUP(C5,TblMonthData,3,0) -> 11 | E7: ชื่อ | F7: =IFERROR(Sheet1!C38&Sheet1!D38&" "&Sheet1!E38,"No Data") -> นางณเดชน์ วงษ์พันธ์
A8: เริ่มพิมพ์จากลำดับที่ | C8: 1 | E8: ตำแหน่ง | F8: =IFERROR(Sheet1!G38,"No Data") -> เจ้าหน้าที่อาวุโส
A9: สิ้นสุดการพิมพ์ลำดับที่ | C9: 1 | E9: เงินเดือน | F9: =IFERROR(Sheet1!N38,"No Data") -> 10000
E10: รับสุทธิ | F10: =IFERROR(Sheet1!AV38,"No Data") -> 10504.16667

Sheet Sheet1 (hidden)
A1: =DuenTee -> 1 | B1: 1 | C1: มกราคม | D1: =IFERROR(COUNT('1'!A:A),0) -> 11 | E1: =IFERROR(VLOOKUP(EmpID,'1'!$B:$AS,32,0),0) -> 11254.16667 | F1: =E1 -> 11254.16667 | G1: =IFERROR(VLOOKUP(EmpID,'1'!$B:$AI,34,0),0) -> 0 | H1: =G1 -> 0 | I1: =IFERROR(VLOOKUP(EmpID,'1'!$B:$AH,33,0),0) -> 500 | J1: =I1 -> 500 | K1: =IFERROR(VLOOKUP(EmpID,'1'!$B:$AJ,35,0),0) -> 0 | L1: =K1 -> 0
A2: =No -> 1 | B2: 2 | C2: มกราคม | D2: =IFERROR(COUNT('2'!A:A),0) -> 0 | E2: =IFERROR(VLOOKUP(EmpID,'2'!$B:$AS,32,0),0) -> 0 | F2: =IF(E2>0,SUM(E$1:$E2),0) -> 0 | G2: =IFERROR(VLOOKUP(EmpID,'2'!$B:$AI,34,0),0) -> 0 | H2: =IF(G2>0,SUM(G$1:$G2),0) -> 0 | I2: =IFERROR(VLOOKUP(EmpID,'2'!$B:$AH,33,0),0) -> 0 | J2: =IF(I2>0,SUM(I$1:$I2),0) -> 0 | K2: =IFERROR(VLOOKUP(EmpID,'2'!$B:$AJ,35,0),0) -> 0 | L2: =IF(K2>0,SUM($K$1:K2),0) -> 0
A3: =EmpID -> 63001 | B3: 3 | C3: กุมภาพันธ์ | D3: =IFERROR(COUNT('3'!A:A),0) -> 0 | E3: =IFERROR(VLOOKUP(EmpID,'3'!$B:$AS,32,0),0) -> 0 | F3: =IF(E3>0,SUM(E$1:$E3),0) -> 0 | G3: =IFERROR(VLOOKUP(EmpID,'3'!$B:$AI,34,0),0) -> 0 | H3: =IF(G3>0,SUM(G$1:$G3),0) -> 0 | I3: =IFERROR(VLOOKUP(EmpID,'3'!$B:$AH,33,0),0) -> 0 | J3: =IF(I3>0,SUM(I$1:$I3),0) -> 0 | K3: =IFERROR(VLOOKUP(EmpID,'3'!$B:$AJ,35,0),0) -> 0 | L3: =IF(K3>0,SUM($K$1:K3),0) -> 0
B4: 4 | C4: กุมภาพันธ์ | D4: =IFERROR(COUNT('4'!A:A),0) -> 0 | E4: =IFERROR(VLOOKUP(EmpID,'4'!$B:$AS,32,0),0) -> 0 | F4: =IF(E4>0,SUM(E$1:$E4),0) -> 0 | G4: =IFERROR(VLOOKUP(EmpID,'4'!$B:$AI,34,0),0) -> 0 | H4: =IF(G4>0,SUM(G$1:$G4),0) -> 0 | I4: =IFERROR(VLOOKUP(EmpID,'4'!$B:$AH,33,0),0) -> 0 | J4: =IF(I4>0,SUM(I$1:$I4),0) -> 0 | K4: =IFERROR(VLOOKUP(EmpID,'4'!$B:$AJ,35,0),0) -> 0 | L4: =IF(K4>0,SUM($K$1:K4),0) -> 0
B5: 5 | C5: มีนาคม | D5: =IFERROR(COUNT('5'!A:A),0) -> 0 | E5: =IFERROR(VLOOKUP(EmpID,'5'!$B:$AS,32,0),0) -> 0 | F5: =IF(E5>0,SUM(E$1:$E5),0) -> 0 | G5: =IFERROR(VLOOKUP(EmpID,'5'!$B:$AI,34,0),0) -> 0 | H5: =IF(G5>0,SUM(G$1:$G5),0) -> 0 | I5: =IFERROR(VLOOKUP(EmpID,'5'!$B:$AH,33,0),0) -> 0 | J5: =IF(I5>0,SUM(I$1:$I5),0) -> 0 | K5: =IFERROR(VLOOKUP(EmpID,'5'!$B:$AJ,35,0),0) -> 0 | L5: =IF(K5>0,SUM($K$1:K5),0) -> 0
B6: 6 | C6: มีนาคม | D6: =IFERROR(COUNT('6'!A:A),0) -> 0 | E6: =IFERROR(VLOOKUP(EmpID,'6'!$B:$AS,32,0),0) -> 0 | F6: =IF(E6>0,SUM(E$1:$E6),0) -> 0 | G6: =IFERROR(VLOOKUP(EmpID,'6'!$B:$AI,34,0),0) -> 0 | H6: =IF(G6>0,SUM(G$1:$G6),0) -> 0 | I6: =IFERROR(VLOOKUP(EmpID,'6'!$B:$AH,33,0),0) -> 0 | J6: =IF(I6>0,SUM(I$1:$I6),0) -> 0 | K6: =IFERROR(VLOOKUP(EmpID,'6'!$B:$AJ,35,0),0) -> 0 | L6: =IF(K6>0,SUM($K$1:K6),0) -> 0
B7: 7 | C7: เมษายน | D7: =IFERROR(COUNT('7'!A:A),0) -> 0 | E7: =IFERROR(VLOOKUP(EmpID,'7'!$B:$AS,32,0),0) -> 0 | F7: =IF(E7>0,SUM(E$1:$E7),0) -> 0 | G7: =IFERROR(VLOOKUP(EmpID,'7'!$B:$AI,34,0),0) -> 0 | H7: =IF(G7>0,SUM(G$1:$G7),0) -> 0 | I7: =IFERROR(VLOOKUP(EmpID,'7'!$B:$AH,33,0),0) -> 0 | J7: =IF(I7>0,SUM(I$1:$I7),0) -> 0 | K7: =IFERROR(VLOOKUP(EmpID,'7'!$B:$AJ,35,0),0) -> 0 | L7: =IF(K7>0,SUM($K$1:K7),0) -> 0
B8: 8 | C8: เมษายน | D8: =IFERROR(COUNT('8'!A:A),0) -> 0 | E8: =IFERROR(VLOOKUP(EmpID,'8'!$B:$AS,32,0),0) -> 0 | F8: =IF(E8>0,SUM(E$1:$E8),0) -> 0 | G8: =IFERROR(VLOOKUP(EmpID,'8'!$B:$AI,34,0),0) -> 0 | H8: =IF(G8>0,SUM(G$1:$G8),0) -> 0 | I8: =IFERROR(VLOOKUP(EmpID,'8'!$B:$AH,33,0),0) -> 0 | J8: =IF(I8>0,SUM(I$1:$I8),0) -> 0 | K8: =IFERROR(VLOOKUP(EmpID,'8'!$B:$AJ,35,0),0) -> 0 | L8: =IF(K8>0,SUM($K$1:K8),0) -> 0
B9: 9 | C9: พฤษภาคม | D9: =IFERROR(COUNT('9'!A:A),0) -> 0 | E9: =IFERROR(VLOOKUP(EmpID,'9'!$B:$AS,32,0),0) -> 0 | F9: =IF(E9>0,SUM(E$1:$E9),0) -> 0 | G9: =IFERROR(VLOOKUP(EmpID,'9'!$B:$AI,34,0),0) -> 0 | H9: =IF(G9>0,SUM(G$1:$G9),0) -> 0 | I9: =IFERROR(VLOOKUP(EmpID,'9'!$B:$AH,33,0),0) -> 0 | J9: =IF(I9>0,SUM(I$1:$I9),0) -> 0 | K9: =IFERROR(VLOOKUP(EmpID,'9'!$B:$AJ,35,0),0) -> 0 | L9: =IF(K9>0,SUM($K$1:K9),0) -> 0
B10: 10 | C10: พฤษภาคม | D10: =IFERROR(COUNT('10'!A:A),0) -> 0 | E10: =IFERROR(VLOOKUP(EmpID,'10'!$B:$AS,32,0),0) -> 0 | F10: =IF(E10>0,SUM(E$1:$E10),0) -> 0 | G10: =IFERROR(VLOOKUP(EmpID,'10'!$B:$AI,34,0),0) -> 0 | H10: =IF(G10>0,SUM(G$1:$G10),0) -> 0 | I10: =IFERROR(VLOOKUP(EmpID,'10'!$B:$AH,33,0),0) -> 0 | J10: =IF(I10>0,SUM(I$1:$I10),0) -> 0 | K10: =IFERROR(VLOOKUP(EmpID,'10'!$B:$AJ,35,0),0) -> 0 | L10: =IF(K10>0,SUM($K$1:K10),0) -> 0
B11: 11 | C11: มิถุนายน | D11: =IFERROR(COUNT('11'!A:A),0) -> 0 | E11: =IFERROR(VLOOKUP(EmpID,'11'!$B:$AS,32,0),0) -> 0 | F11: =IF(E11>0,SUM(E$1:$E11),0) -> 0 | G11: =IFERROR(VLOOKUP(EmpID,'11'!$B:$AI,34,0),0) -> 0 | H11: =IF(G11>0,SUM(G$1:$G11),0) -> 0 | I11: =IFERROR(VLOOKUP(EmpID,'11'!$B:$AH,33,0),0) -> 0 | J11: =IF(I11>0,SUM(I$1:$I11),0) -> 0 | K11: =IFERROR(VLOOKUP(EmpID,'11'!$B:$AJ,35,0),0) -> 0 | L11: =IF(K11>0,SUM($K$1:K11),0) -> 0
B12: 12 | C12: มิถุนายน | D12: =IFERROR(COUNT('12'!A:A),0) -> 0 | E12: =IFERROR(VLOOKUP(EmpID,'12'!$B:$AS,32,0),0) -> 0 | F12: =IF(E12>0,SUM(E$1:$E12),0) -> 0 | G12: =IFERROR(VLOOKUP(EmpID,'12'!$B:$AI,34,0),0) -> 0 | H12: =IF(G12>0,SUM(G$1:$G12),0) -> 0 | I12: =IFERROR(VLOOKUP(EmpID,'12'!$B:$AH,33,0),0) -> 0 | J12: =IF(I12>0,SUM(I$1:$I12),0) -> 0 | K12: =IFERROR(VLOOKUP(EmpID,'12'!$B:$AJ,35,0),0) -> 0 | L12: =IF(K12>0,SUM($K$1:K12),0) -> 0
B13: 13 | C13: กรกฎาคม | D13: 0 | E13: =IFERROR(VLOOKUP(EmpID,#REF!,32,0),0) -> 0 | F13: =IF(E13>0,SUM(E$1:$E13),0) -> 0 | G13: =IFERROR(VLOOKUP(EmpID,#REF!,34,0),0) -> 0 | H13: =IF(G13>0,SUM(G$1:$G13),0) -> 0 | I13: =IFERROR(VLOOKUP(EmpID,#REF!,33,0),0) -> 0 | J13: =IF(I13>0,SUM(I$1:$I13),0) -> 0 | K13: =IFERROR(VLOOKUP(EmpID,#REF!,35,0),0) -> 0 | L13: =IF(K13>0,SUM($K$1:K13),0) -> 0
B14: 14 | C14: กรกฎาคม | D14: 0 | E14: =IFERROR(VLOOKUP(EmpID,#REF!,32,0),0) -> 0 | F14: =IF(E14>0,SUM(E$1:$E14),0) -> 0 | G14: =IFERROR(VLOOKUP(EmpID,#REF!,34,0),0) -> 0 | H14: =IF(G14>0,SUM(G$1:$G14),0) -> 0 | I14: =IFERROR(VLOOKUP(EmpID,#REF!,33,0),0) -> 0 | J14: =IF(I14>0,SUM(I$1:$I14),0) -> 0 | K14: =IFERROR(VLOOKUP(EmpID,#REF!,35,0),0) -> 0 | L14: =IF(K14>0,SUM($K$1:K14),0) -> 0
B15: 15 | C15: สิงหาคม | D15: 0 | E15: =IFERROR(VLOOKUP(EmpID,#REF!,32,0),0) -> 0 | F15: =IF(E15>0,SUM(E$1:$E15),0) -> 0 | G15: =IFERROR(VLOOKUP(EmpID,#REF!,34,0),0) -> 0 | H15: =IF(G15>0,SUM(G$1:$G15),0) -> 0 | I15: =IFERROR(VLOOKUP(EmpID,#REF!,33,0),0) -> 0 | J15: =IF(I15>0,SUM(I$1:$I15),0) -> 0 | K15: =IFERROR(VLOOKUP(EmpID,#REF!,35,0),0) -> 0 | L15: =IF(K15>0,SUM($K$1:K15),0) -> 0
B16: 16 | C16: สิงหาคม | D16: 0 | E16: =IFERROR(VLOOKUP(EmpID,#REF!,32,0),0) -> 0 | F16: =IF(E16>0,SUM(E$1:$E16),0) -> 0 | G16: =IFERROR(VLOOKUP(EmpID,#REF!,34,0),0) -> 0 | H16: =IF(G16>0,SUM(G$1:$G16),0) -> 0 | I16: =IFERROR(VLOOKUP(EmpID,#REF!,33,0),0) -> 0 | J16: =IF(I16>0,SUM(I$1:$I16),0) -> 0 | K16: =IFERROR(VLOOKUP(EmpID,#REF!,35,0),0) -> 0 | L16: =IF(K16>0,SUM($K$1:K16),0) -> 0
B17: 17 | C17: กันยายน | D17: 0 | E17: =IFERROR(VLOOKUP(EmpID,#REF!,32,0),0) -> 0 | F17: =IF(E17>0,SUM(E$1:$E17),0) -> 0 | G17: =IFERROR(VLOOKUP(EmpID,#REF!,34,0),0) -> 0 | H17: =IF(G17>0,SUM(G$1:$G17),0) -> 0 | I17: =IFERROR(VLOOKUP(EmpID,#REF!,33,0),0) -> 0 | J17: =IF(I17>0,SUM(I$1:$I17),0) -> 0 | K17: =IFERROR(VLOOKUP(EmpID,#REF!,35,0),0) -> 0 | L17: =IF(K17>0,SUM($K$1:K17),0) -> 0
B18: 18 | C18: กันยายน | D18: 0 | E18: =IFERROR(VLOOKUP(EmpID,#REF!,32,0),0) -> 0 | F18: =IF(E18>0,SUM(E$1:$E18),0) -> 0 | G18: =IFERROR(VLOOKUP(EmpID,#REF!,34,0),0) -> 0 | H18: =IF(G18>0,SUM(G$1:$G18),0) -> 0 | I18: =IFERROR(VLOOKUP(EmpID,#REF!,33,0),0) -> 0 | J18: =IF(I18>0,SUM(I$1:$I18),0) -> 0 | K18: =IFERROR(VLOOKUP(EmpID,#REF!,35,0),0) -> 0 | L18: =IF(K18>0,SUM($K$1:K18),0) -> 0
B19: 19 | C19: ตุลาคม | D19: 0 | E19: =IFERROR(VLOOKUP(EmpID,#REF!,32,0),0) -> 0 | F19: =IF(E19>0,SUM(E$1:$E19),0) -> 0 | G19: =IFERROR(VLOOKUP(EmpID,#REF!,34,0),0) -> 0 | H19: =IF(G19>0,SUM(G$1:$G19),0) -> 0 | I19: =IFERROR(VLOOKUP(EmpID,#REF!,33,0),0) -> 0 | J19: =IF(I19>0,SUM(I$1:$I19),0) -> 0 | K19: =IFERROR(VLOOKUP(EmpID,#REF!,35,0),0) -> 0 | L19: =IF(K19>0,SUM($K$1:K19),0) -> 0
B20: 20 | C20: ตุลาคม | D20: 0 | E20: =IFERROR(VLOOKUP(EmpID,#REF!,32,0),0) -> 0 | F20: =IF(E20>0,SUM(E$1:$E20),0) -> 0 | G20: =IFERROR(VLOOKUP(EmpID,#REF!,34,0),0) -> 0 | H20: =IF(G20>0,SUM(G$1:$G20),0) -> 0 | I20: =IFERROR(VLOOKUP(EmpID,#REF!,33,0),0) -> 0 | J20: =IF(I20>0,SUM(I$1:$I20),0) -> 0 | K20: =IFERROR(VLOOKUP(EmpID,#REF!,35,0),0) -> 0 | L20: =IF(K20>0,SUM($K$1:K20),0) -> 0
B21: 21 | C21: พฤศจิกายน | D21: 0 | E21: =IFERROR(VLOOKUP(EmpID,#REF!,32,0),0) -> 0 | F21: =IF(E21>0,SUM(E$1:$E21),0) -> 0 | G21: =IFERROR(VLOOKUP(EmpID,#REF!,34,0),0) -> 0 | H21: =IF(G21>0,SUM(G$1:$G21),0) -> 0 | I21: =IFERROR(VLOOKUP(EmpID,#REF!,33,0),0) -> 0 | J21: =IF(I21>0,SUM(I$1:$I21),0) -> 0 | K21: =IFERROR(VLOOKUP(EmpID,#REF!,35,0),0) -> 0 | L21: =IF(K21>0,SUM($K$1:K21),0) -> 0
B22: 22 | C22: พฤศจิกายน | D22: 0 | E22: =IFERROR(VLOOKUP(EmpID,#REF!,32,0),0) -> 0 | F22: =IF(E22>0,SUM(E$1:$E22),0) -> 0 | G22: =IFERROR(VLOOKUP(EmpID,#REF!,34,0),0) -> 0 | H22: =IF(G22>0,SUM(G$1:$G22),0) -> 0 | I22: =IFERROR(VLOOKUP(EmpID,#REF!,33,0),0) -> 0 | J22: =IF(I22>0,SUM(I$1:$I22),0) -> 0 | K22: =IFERROR(VLOOKUP(EmpID,#REF!,35,0),0) -> 0 | L22: =IF(K22>0,SUM($K$1:K22),0) -> 0
B23: 23 | C23: ธันวาคม | D23: 0 | E23: =IFERROR(VLOOKUP(EmpID,#REF!,32,0),0) -> 0 | F23: =IF(E23>0,SUM(E$1:$E23),0) -> 0 | G23: =IFERROR(VLOOKUP(EmpID,#REF!,34,0),0) -> 0 | H23: =IF(G23>0,SUM(G$1:$G23),0) -> 0 | I23: =IFERROR(VLOOKUP(EmpID,#REF!,33,0),0) -> 0 | J23: =IF(I23>0,SUM(I$1:$I23),0) -> 0 | K23: =IFERROR(VLOOKUP(EmpID,#REF!,35,0),0) -> 0 | L23: =IF(K23>0,SUM($K$1:K23),0) -> 0
B24: 24 | C24: ธันวาคม | D24: 0 | E24: =IFERROR(VLOOKUP(EmpID,#REF!,32,0),0) -> 0 | F24: =IF(E24>0,SUM(E$1:$E24),0) -> 0 | G24: =IFERROR(VLOOKUP(EmpID,#REF!,34,0),0) -> 0 | H24: =IF(G24>0,SUM(G$1:$G24),0) -> 0 | I24: =IFERROR(VLOOKUP(EmpID,#REF!,33,0),0) -> 0 | J24: =IF(I24>0,SUM(I$1:$I24),0) -> 0 | K24: =IFERROR(VLOOKUP(EmpID,#REF!,35,0),0) -> 0 | L24: =IF(K24>0,SUM($K$1:K24),0) -> 0
E26: =IF(A1=1,F1,IF(A1=2,F2,IF(A1=3,F3,IF(A1=4,F4,IF(A1=5,F5,IF(A1=6,F6,IF(A1=7,F7,IF(A1=8,F8,IF(A1=9,F9,IF(A1=10,F10,IF(A1=11,F11,IF(A1=12,F12,IF(A1=13,F13,IF(A1=14,F14,IF(A1=15,F15,IF(A1=16,F16,IF(A1=17,F17,IF(A1=18,F18,IF(A1=19,F19,IF(A1=20,F20,IF(A1=21,F21,IF(A1=22,F22,IF(A1=23,F23,IF(A1=24,F24)))))))))))))))))))))))) -> 11254.16667 | G26: =IF(A1=1,H1,IF(A1=2,H2,IF(A1=3,H3,IF(A1=4,H4,IF(A1=5,H5,IF(A1=6,H6,IF(A1=7,H7,IF(A1=8,H8,IF(A1=9,H9,IF(A1=10,H10,IF(A1=11,H11,IF(A1=12,H12,IF(A1=13,H13,IF(A1=14,H14,IF(A1=15,H15,IF(A1=16,H16,IF(A1=17,H17,IF(A1=18,H18,IF(A1=19,H19,IF(A1=20,H20,IF(A1=21,H21,IF(A1=22,H22,IF(A1=23,H23,IF(A1=24,H24)))))))))))))))))))))))) -> 0 | I26: =IF(A1=1,J1,IF(A1=2,J2,IF(A1=3,J3,IF(A1=4,J4,IF(A1=5,J5,IF(A1=6,J6,IF(A1=7,J7,IF(A1=8,J8,IF(A1=9,J9,IF(A1=10,J10,IF(A1=11,J11,IF(A1=12,J12,IF(A1=13,J13,IF(A1=14,J14,IF(A1=15,J15,IF(A1=16,J16,IF(A1=17,J17,IF(A1=18,J18,IF(A1=19,J19,IF(A1=20,J20,IF(A1=21,J21,IF(A1=22,J22,IF(A1=23,J23,IF(A1=24,J24)))))))))))))))))))))))) -> 500 | K26: =IF(A1=1,L1,IF(A1=2,L2,IF(A1=3,L3,IF(A1=4,L4,IF(A1=5,L5,IF(A1=6,L6,IF(A1=7,L7,IF(A1=8,L8,IF(A1=9,L9,IF(A1=10,L10,IF(A1=11,L11,IF(A1=12,L12,IF(A1=13,L13,IF(A1=14,L14,IF(A1=15,L15,IF(A1=16,L16,IF(A1=17,L17,IF(A1=18,L18,IF(A1=19,L19,IF(A1=20,L20,IF(A1=21,L21,IF(A1=22,L22,IF(A1=23,L23,IF(A1=24,L24)))))))))))))))))))))))) -> 0
A32: Limit ให้ | B32: 300 | C32: คน
A35: 1 | B35: 2 | C35: 3 | D35: 4 | E35: 5 | F35: 6 | G35: 7 | H35: 8 | I35: 9 | J35: 10 | K35: 11 | L35: 12 | M35: 13 | N35: 14 | O35: 15 | P35: 16 | Q35: 17 | R35: 18 | S35: 19 | T35: 20 | U35: 21 | V35: 22 | W35: 23 | X35: 24 | Y35: 25 | Z35: 26 | AA35: 27 | AB35: 28 | AC35: 29 | AD35: 30 | AE35: 31 | AF35: 32 | AG35: 33 | AH35: 34 | AI35: 35 | AJ35: 36 | AK35: 37 | AL35: 38 | AM35: 39 | AN35: 40 | AO35: 41 | AP35: 42 | AQ35: 43 | AR35: 44 | AS35: 45 | AT35: 46 | AU35: 47 | AV35: 48 | AW35: 49 | AX35: 50 | AY35: 51 | AZ35: 52 | BA35: 53 | BB35: 54 | BC35: 55 | BD35: 56 | BE35: 57 | BF35: 58 | BG35: 59 | BH35: 60 | BI35: 61 | BJ35: 62 | BK35: 63 | BL35: 64 | BM35: 65 | BN35: 66 | BO35: 67
A36: a1 | B36: b1 | C36: c1 | D36: d1 | E36: e1 | F36: f1 | G36: g1 | H36: h1 | I36: i1 | J36: j1 | K36: k1 | L36: l1 | M36: m1 | N36: n1 | O36: o1 | P36: p1 | Q36: q1 | R36: r1 | S36: s1 | T36: t1 | U36: u1 | V36: v1 | W36: w1 | X36: x1 | Y36: y1 | Z36: z1 | AA36: aa1 | AB36: ab1 | AC36: ac1 | AD36: ad1 | AE36: ae1 | AF36: af1 | AG36: ag1 | AH36: ah1 | AI36: ai1 | AJ36: aj1 | AK36: ak1 | AL36: al1 | AM36: am1 | AN36: an1 | AO36: ao1 | AP36: ap1 | AQ36: aq1 | AR36: ar1 | AS36: as1 | AT36: at1 | AU36: au1 | AV36: av1 | AW36: aw1 | AX36: ax1 | AY36: ay2 | AZ36: az2 | BA36: ba1 | BB36: bb1 | BC36: bc1 | BD36: bd1 | BE36: be1 | BF36: bf1 | BG36: bg1 | BH36: bh1 | BI36: bi1 | BJ36: bj1 | BK36: bk1 | BL36: bl1 | BM36: bm1 | BN36: bn1 | BO36: bo1
A37: =INDIRECT("'"&DuenTee&"'!"&A36) -> ลำดับที่ | B37: รหัสพนักงาน | C37: คำนำหน้า | D37: ชื่อ | E37: =INDIRECT("'"&DuenTee&"'!"&E36) -> นามสกุล | F37: แผนก | G37: ตำแหน่ง | H37: เลขที่บัญชี | I37: วันที่เข้างาน | J37: 0 | K37: 0 | L37: ค่าแรง | M37: จำนวนวันทำงาน | N37: เงินเดือน/ค่าแรง | O37: OT 1 เท่า (ชม.) | P37: 0 | Q37: OT 1.5 เท่า (ชม.) | R37: 0 | S37: OT 2.0 เท่า (ชม.) | T37: 0 | U37: OT 3.0 เท่า (ชม.) | V37: 0 | W37: รวม OT | X37: คอมมิสชั่น | Y37: เบี้ยขยัน | Z37: โบนัส | AA37: อื่นๆ | AB37: เปลี่ยนได้2 | AC37: เปลี่ยนได้3 | AD37: เปลี่ยนได้4 | AE37: 0 | AF37: 0 | AG37: รวมรายได้ | AH37: ประกันสังคม | AI37: =INDIRECT("'"&DuenTee&"'!"&AI36) -> ภาษี | AJ37: กองทุนสำรองเลี้ยงชีพ | AK37: หักกองทุน % | AL37: กู้ยืม | AM37: สาย | AN37: อื่นๆ | AO37: xx | AP37: xxx | AQ37: xxxx | AR37: 0 | AS37: รวมรายการหัก(ไม่รวมภาษี) | AT37: รวมรายการหัก | AU37: เงินได้สุทธิ | AV37: เงินได้สุทธิ(หลังหักภาษี) | AW37: ลดหย่อนรวมสุทธิ | AX37: ลดหย่อนรวม | AY37: 67525 | AZ37: 60000 | BA37: ประกันสังคม | BB37: ลดหย่อนพ่อแม่ | BC37: ลดหย่อนลูก | BD37: ค่าเบี้ยประกัน | BE37: ดอกเบี้ยบ้าน | BF37: เพิ่มได้จนถึง bo | BG37: 0 | BH37: 0 | BI37: 0 | BJ37: 0 | BK37: 0 | BL37: 0 | BM37: 0 | BN37: 0 | BO37: 0
A38: =VLOOKUP(No,INDIRECT("'"&DuenTee&"'!"&"$A$2:$AE$301"),A35,0) -> 1 | B38: =VLOOKUP(No,INDIRECT("'"&DuenTee&"'!"&"$A$2:$AE$301"),B35,0) -> 63001 | C38: =IF(VLOOKUP(No,INDIRECT("'"&DuenTee&"'!"&"$A$2:$AE$301"),C35,0)="","",VLOOKUP(No,INDIRECT("'"&DuenTee&"'!"&"$A$2:$AE$301"),C35,0)) -> นาง | D38: =VLOOKUP(No,INDIRECT("'"&DuenTee&"'!"&"$A$2:$AE$301"),D35,0) -> ณเดชน์ | E38: =IF(VLOOKUP(No,INDIRECT("'"&DuenTee&"'!"&"$A$2:$AE$301"),E35,0)="","",VLOOKUP(No,INDIRECT("'"&DuenTee&"'!"&"$A$2:$AE$301"),E35,0)) -> วงษ์พันธ์ | F38: =VLOOKUP(No,INDIRECT("'"&DuenTee&"'!"&"$A$2:$AE$301"),F35,0) -> ธุรการ 总务 | G38: เจ้าหน้าที่อาวุโส | H38: 0652792944 | I38: 2019-09-26 | J38: 0 | K38: 0 | L38: 0 | M38: 0 | N38: =VLOOKUP(No,INDIRECT("'"&DuenTee&"'!"&"$A$2:$AE$3101"),N35,0) -> 10000 | O38: =VLOOKUP(No,INDIRECT("'"&DuenTee&"'!"&"$A$2:$AE$301"),O35,0) -> 2 | P38: 83.33333333 | Q38: 1 | R38: 62.5 | S38: 1 | T38: 83.33333333 | U38: 1 | V38: 125 | W38: 354.1666667 | X38: 200 | Y38: 300 | Z38: 400 | AA38: 0 | AB38: =VLOOKUP(No,INDIRECT("'"&DuenTee&"'!"&"$A$2:$bq$301"),AB35,0) -> 0 | AC38: 0 | AD38: 0 | AE38: 0 | AF38: 0 | AG38: 11254.16667 | AH38: 500 | AI38: 0 | AJ38: 0 | AK38: 0 | AL38: 100 | AM38: 50 | AN38: 10 | AO38: 20 | AP38: 30 | AQ38: 40 | AR38: 0 | AS38: 750 | AT38: 750 | AU38: 10504.16667 | AV38: 10504.16667 | AW38: 325 | AX38: 134725 | AY38: 67525 | AZ38: =VLOOKUP(No,INDIRECT("'"&DuenTee&"'!"&"$A$2:$bq$301"),BA35,0) -> 7200 | BA38: =VLOOKUP(No,INDIRECT("'"&DuenTee&"'!"&"$A$2:$bq$301"),BB35,0) -> 0 | BB38: =VLOOKUP(No,INDIRECT("'"&DuenTee&"'!"&"$A$2:$bq$301"),BB35,0) -> 0 | BC38: 0 | BD38: 0 | BE38: 0 | BF38: 0 | BG38: 0 | BH38: 0 | BI38: 0 | BJ38: 0 | BK38: 0 | BL38: 0 | BM38: 0 | BN38: 0 | BO38: 0
V39: =P38+R38+T38+V38 -> 354.1666667
A40: OT1 | B40: 1
A41: OT1.5 | B41: 1.5
A42: OT2 | B42: 2
A43: OT3 | B43: 3
A47: 1 | B47: 1-15 | C47: มกราคม
A48: 2 | B48: 16-31 | C48: มกราคม
A49: 3 | B49: 1-15 | C49: กุมภาพันธ์ | E49: 1 | F49: มกราคม
A50: 4 | B50: 16-28,29 | C50: กุมภาพันธ์ | E50: 2 | F50: กุมภาพันธ์
A51: 5 | B51: 1-15 | C51: มีนาคม | E51: 3 | F51: มีนาคม
A52: 6 | B52: 16-31 | C52: มีนาคม | E52: 4 | F52: เมษายน
A53: 7 | B53: 1-15 | C53: เมษายน | E53: 5 | F53: พฤษภาคม
A54: 8 | B54: 16-30 | C54: เมษายน | E54: 6 | F54: มิถุนายน
A55: 9 | B55: 1-15 | C55: พฤษภาคม | E55: 7 | F55: กรกฎาคม
A56: 10 | B56: 16-31 | C56: พฤษภาคม | E56: 8 | F56: สิงหาคม
A57: 11 | B57: 1-15 | C57: มิถุนายน | E57: 9 | F57: กันยายน
A58: 12 | B58: 16-30 | C58: มิถุนายน | E58: 10 | F58: ตุลาคม
A59: 13 | B59: 1-15 | C59: กรกฎาคม | E59: 11 | F59: พฤศจิกายน
A60: 14 | B60: 16-31 | C60: กรกฎาคม | E60: 12 | F60: ธันวาคม
A61: 15 | B61: 1-15 | C61: สิงหาคม
A62: 16 | B62: 16-31 | C62: สิงหาคม
A63: 17 | B63: 1-15 | C63: กันยายน
A64: 18 | B64: 16-30 | C64: กันยายน
A65: 19 | B65: 1-15 | C65: ตุลาคม
A66: 20 | B66: 16-31 | C66: ตุลาคม
A67: 21 | B67: 1-15 | C67: พฤศจิกายน
A68: 22 | B68: 16-30 | C68: พฤศจิกายน
A69: 23 | B69: 1-15 | C69: ธันวาคม
A70: 24 | B70: 16-31 | C70: ธันวาคม

Sheet คู่มือ
B25: โปรดทำตามคู่มือ และตรวจสอบความถูกต้องด้วยครับ
B27: --ตั้งค่าหน้ากระดาษตาม Video ด้านล่าง เพื่อกำหนดขนาดกระดาษ---
B28: --- อย่าลืมเลือกหน้ากระดาษที่ตั้งก่อน print ด้วยนะครับ ทำครั้งแรกครั้งเดียว ---
B30: การตั้งค่าหน้ากระดาษ Windows10 (Video 1)
B31: https://youtu.be/ZW7fdAc4pIw
B33: หากทำแล้วยัง Print ออกมาไม่ตรงให้ทำตาม Video ด้านล่างนี้
B34: https://youtu.be/ZEhjHrWjmw
B36: ขั้นตอนการทำสลิป
B37: 1.ติดตั้ง driver printer
B38: 2.เพิ่มขนาดกระดาษขึ้นมาใหม่ ตั้งค่าหน้ากระดาษ 8x5.5 นิ้ว (ดู Video1)
B39: 3.ใส่แบบฟอร์มสลิปเงินเดือนเข้ากับเครื่องพิมพ์
B40: 4.เปิดโปรแกรมพิมพ์สลิป(Excel) เลือกขนาดกระดาษที่เพิ่มขึ้นมา
B41: 5.สั่งพิมพ์สลิปเงินเดือน

Sheet 1
A1: ลำดับที่ | B1: รหัสพนักงาน | C1: คำนำหน้า | D1: ชื่อ | E1: นามสกุล | F1: แผนก | G1: ตำแหน่ง | H1: เลขที่บัญชี | I1: วันที่เข้างาน | L1: ค่าแรง | M1: จำนวนวันทำงาน | N1: เงินเดือน/ค่าแรง | O1: OT 1 เท่า (ชม.) | Q1: OT 1.5 เท่า (ชม.) | S1: OT 2.0 เท่า (ชม.) | U1: OT 3.0 เท่า (ชม.) | W1: รวม OT | X1: คอมมิสชั่น | Y1: เบี้ยขยัน | Z1: โบนัส | AA1: อื่นๆ | AB1: เปลี่ยนได้2 | AC1: เปลี่ยนได้3 | AD1: เปลี่ยนได้4 | AG1: รวมรายได้ | AH1: ประกันสังคม | AI1: ภาษี | AJ1: กองทุนสำรองเลี้ยงชีพ | AK1: หักกองทุน % | AL1: กู้ยืม | AM1: สาย | AN1: อื่นๆ | AO1: xx | AP1: xxx | AQ1: xxxx | AS1: รวมรายการหัก(ไม่รวมภาษี) | AT1: รวมรายการหัก | AU1: เงินได้สุทธิ | AV1: เงินได้สุทธิ(หลังหักภาษี) | AW1: ลดหย่อนรวมสุทธิ | AX1: ลดหย่อนรวม | AY1: ค่าใช้จ่ายเหมา 50% | AZ1: หักค่าลดหย่อนส่วนตัว | BA1: ประกันสังคม | BB1: ลดหย่อนพ่อแม่ | BC1: ลดหย่อนลูก | BD1: ค่าเบี้ยประกัน | BE1: ดอกเบี้ยบ้าน | BF1: เพิ่มได้จนถึง bo
A2: 1 | B2: 63001 | C2: นาง | D2: ณเดชน์ | E2: วงษ์พันธ์ | F2: ธุรการ 总务 | G2: เจ้าหน้าที่อาวุโส | H2: 0652792944 | I2: 43734 | N2: 10000 | O2: 2 | P2: =(Table421032323[[#This Row],[Column58]]/30/8)*(Table421032323[[#This Row],[Column54]]*1) -> 83.33333333 | Q2: 1 | R2: =(Table421032323[[#This Row],[Column58]]/30/8)*(Table421032323[[#This Row],[Column11]]*1.5) -> 62.5 | S2: 1 | T2: =(Table421032323[[#This Row],[Column58]]/30/8)*(Table421032323[[#This Row],[Column56]]*2) -> 83.33333333 | U2: 1 | V2: =(Table421032323[[#This Row],[Column58]]/30/8)*(Table421032323[[#This Row],[Column12]]*3) -> 125 | W2: =Table421032323[[#This Row],[Column10]]+Table421032323[[#This Row],[Column55]]+Table421032323[[#This Row],[Column57]]+Table421032323[[#This Row],[Column13]] -> 354.1666667 | X2: 200 | Y2: 300 | Z2: 400 | AG2: =Table421032323[[#This Row],[Column58]]+Table421032323[[#This Row],[Column14]]+Table421032323[[#This Row],[Column15]]+Table421032323[[#This Row],[Column16]]+Table421032323[[#This Row],[Column17]]+Table421032323[[#This Row],[Column19]]+Table421032323[[#This Row],[Column62]]+Table421032323[[#This Row],[Column63]]+Table421032323[[#This Row],[Column64]]+Table421032323[[#This Row],[Column65]]+Table421032323[[#This Row],[Column66]] -> 11254.16667 | AH2: =ROUND(IF(N2>15000,750,N2*5%),0) -> 500 | AI2: =TaxCal(AU2,AW2) -> 0 | AL2: 100 | AM2: 50 | AN2: 10 | AO2: 20 | AP2: 30 | AQ2: 40 | AS2: =Table421032323[[#This Row],[Column20]]+Table421032323[[#This Row],[Column24]]+Table421032323[[#This Row],[Column25]]+Table421032323[[#This Row],[Column26]]+Table421032323[[#This Row],[Column27]]+Table421032323[[#This Row],[Column28]]+Table421032323[[#This Row],[Column29]]+Table421032323[[#This Row],[Column30]] -> 750 | AT2: =Table421032323[[#This Row],[Column31]]+Table421032323[[#This Row],[Column21]] -> 750 | AU2: =Table421032323[[#This Row],[Column67]]-Table421032323[[#This Row],[Column31]] -> 10504.16667 | AV2: =Table421032323[[#This Row],[Column70]]-Table421032323[[#This Row],[Column21]] -> 10504.16667 | AW2: =IF((AG2*12)-(SUM(AY2:BF2))<=0,0,(AG2*12)-(SUM(AY2:BF2))) -> 325 | AX2: =SUM(AY2:BF2) -> 134725 | AY2: =IF(((AG2*12)/2)>100000,100000,(AG2*12)/2) -> 67525 | AZ2: 60000 | BA2: 7200
A3: 2 | B3: 63002 | C3: นางสาว | D3: รัชฎาภรณ์ | E3: บุญญาศิรินันท์ | F3: จัดซื้อ 采购 | G3: ผู้จัดการแผนก | H3: 0652798721 | I3: 43745 | N3: 15000 | P3: =(Table421032323[[#This Row],[Column58]]/30/8)*(Table421032323[[#This Row],[Column54]]*1) -> 0 | R3: =(Table421032323[[#This Row],[Column58]]/30/8)*(Table421032323[[#This Row],[Column11]]*1.5) -> 0 | T3: =(Table421032323[[#This Row],[Column58]]/30/8)*(Table421032323[[#This Row],[Column56]]*2) -> 0 | V3: =(Table421032323[[#This Row],[Column58]]/30/8)*(Table421032323[[#This Row],[Column12]]*3) -> 0 | W3: =Table421032323[[#This Row],[Column10]]+Table421032323[[#This Row],[Column55]]+Table421032323[[#This Row],[Column57]]+Table421032323[[#This Row],[Column13]] -> 0 | X3: 0 | Y3: 0 | Z3: 4000 | AG3: =Table421032323[[#This Row],[Column58]]+Table421032323[[#This Row],[Column14]]+Table421032323[[#This Row],[Column15]]+Table421032323[[#This Row],[Column16]]+Table421032323[[#This Row],[Column17]]+Table421032323[[#This Row],[Column19]]+Table421032323[[#This Row],[Column62]]+Table421032323[[#This Row],[Column63]]+Table421032323[[#This Row],[Column64]]+Table421032323[[#This Row],[Column65]]+Table421032323[[#This Row],[Column66]] -> 19000 | AH3: 750 | AI3: 0 | AS3: =Table421032323[[#This Row],[Column20]]+Table421032323[[#This Row],[Column24]]+Table421032323[[#This Row],[Column25]]+Table421032323[[#This Row],[Column26]]+Table421032323[[#This Row],[Column27]]+Table421032323[[#This Row],[Column28]]+Table421032323[[#This Row],[Column29]]+Table421032323[[#This Row],[Column30]] -> 750 | AT3: =Table421032323[[#This Row],[Column31]]+Table421032323[[#This Row],[Column21]] -> 750 | AU3: =Table421032323[[#This Row],[Column67]]-Table421032323[[#This Row],[Column31]] -> 18250 | AV3: =Table421032323[[#This Row],[Column70]]-Table421032323[[#This Row],[Column21]] -> 18250 | AW3: 60800 | AX3: 167200 | AY3: 100000 | AZ3: 60000 | BA3: 7200
A4: 3 | B4: 63003 | C4: นางสาว | D4: ผุสดี | E4: ปัทมภาสพงษ์ | F4: บุคคล 人事 | G4: ผู้จัดการแผนก | H4: 0652745806 | I4: 43773 | N4: =Table421032323[[#This Row],[Column60]]*Table421032323[[#This Row],[Column9]] -> 0 | P4: =(Table421032323[[#This Row],[Column58]]/30/8)*(Table421032323[[#This Row],[Column54]]*1) -> 0 | R4: =(Table421032323[[#This Row],[Column58]]/30/8)*(Table421032323[[#This Row],[Column11]]*1.5) -> 0 | T4: =(Table421032323[[#This Row],[Column58]]/30/8)*(Table421032323[[#This Row],[Column56]]*2) -> 0 | V4: =(Table421032323[[#This Row],[Column58]]/30/8)*(Table421032323[[#This Row],[Column12]]*3) -> 0 | W4: =Table421032323[[#This Row],[Column10]]+Table421032323[[#This Row],[Column55]]+Table421032323[[#This Row],[Column57]]+Table421032323[[#This Row],[Column13]] -> 0 | X4: 0 | Y4: 0 | AG4: =Table421032323[[#This Row],[Column58]]+Table421032323[[#This Row],[Column14]]+Table421032323[[#This Row],[Column15]]+Table421032323[[#This Row],[Column16]]+Table421032323[[#This Row],[Column17]]+Table421032323[[#This Row],[Column19]]+Table421032323[[#This Row],[Column62]]+Table421032323[[#This Row],[Column63]]+Table421032323[[#This Row],[Column64]]+Table421032323[[#This Row],[Column65]]+Table421032323[[#This Row],[Column66]] -> 0 | AH4: 0 | AI4: 0 | AL4: 200 | AM4: 100 | AN4: 3 | AO4: 4 | AP4: 5 | AQ4: 6 | AS4: =Table421032323[[#This Row],[Column20]]+Table421032323[[#This Row],[Column24]]+Table421032323[[#This Row],[Column25]]+Table421032323[[#This Row],[Column26]]+Table421032323[[#This Row],[Column27]]+Table421032323[[#This Row],[Column28]]+Table421032323[[#This Row],[Column29]]+Table421032323[[#This Row],[Column30]] -> 318 | AT4: =Table421032323[[#This Row],[Column31]]+Table421032323[[#This Row],[Column21]] -> 318 | AU4: =Table421032323[[#This Row],[Column67]]-Table421032323[[#This Row],[Column31]] -> -318 | AV4: =Table421032323[[#This Row],[Column70]]-Table421032323[[#This Row],[Column21]] -> -318 | AW4: 0 | AX4: 67200 | AY4: 0 | AZ4: 60000 | BA4: 7200
A5: 4 | B5: 63004 | C5: นาย | D5: กฤษฎา | E5: ธาราภูมิ | F5: ธุรการ 总务 | G5: พนักงานขับรถ 司机 | H5: 0658810863 | I5: 43773 | N5: =Table421032323[[#This Row],[Column60]]*Table421032323[[#This Row],[Column9]] -> 0 | P5: =(Table421032323[[#This Row],[Column58]]/30/8)*(Table421032323[[#This Row],[Column54]]*1) -> 0 | R5: =(Table421032323[[#This Row],[Column58]]/30/8)*(Table421032323[[#This Row],[Column11]]*1.5) -> 0 | T5: =(Table421032323[[#This Row],[Column58]]/30/8)*(Table421032323[[#This Row],[Column56]]*2) -> 0 | V5: =(Table421032323[[#This Row],[Column58]]/30/8)*(Table421032323[[#This Row],[Column12]]*3) -> 0 | W5: =Table421032323[[#This Row],[Column10]]+Table421032323[[#This Row],[Column55]]+Table421032323[[#This Row],[Column57]]+Table421032323[[#This Row],[Column13]] -> 0 | X5: 200 | Y5: 300 | Z5: 400 | AG5: =Table421032323[[#This Row],[Column58]]+Table421032323[[#This Row],[Column14]]+Table421032323[[#This Row],[Column15]]+Table421032323[[#This Row],[Column16]]+Table421032323[[#This Row],[Column17]]+Table421032323[[#This Row],[Column19]]+Table421032323[[#This Row],[Column62]]+Table421032323[[#This Row],[Column63]]+Table421032323[[#This Row],[Column64]]+Table421032323[[#This Row],[Column65]]+Table421032323[[#This Row],[Column66]] -> 900 | AH5: 0 | AI5: 0 | AS5: =Table421032323[[#This Row],[Column20]]+Table421032323[[#This Row],[Column24]]+Table421032323[[#This Row],[Column25]]+Table421032323[[#This Row],[Column26]]+Table421032323[[#This Row],[Column27]]+Table421032323[[#This Row],[Column28]]+Table421032323[[#This Row],[Column29]]+Table421032323[[#This Row],[Column30]] -> 0 | AT5: =Table421032323[[#This Row],[Column31]]+Table421032323[[#This Row],[Column21]] -> 0 | AU5: =Table421032323[[#This Row],[Column67]]-Table421032323[[#This Row],[Column31]] -> 900 | AV5: =Table421032323[[#This Row],[Column70]]-Table421032323[[#This Row],[Column21]] -> 900 | AW5: 0 | AX5: 72600 | AY5: 5400 | AZ5: 60000 | BA5: 7200
A6: 5 | B6: 63005 | C6: นาง | D6: ปัทมาภรณ์ | E6: แก้วโผงเผง | F6: ธุรการ 总务 | G6: แม่บ้าน | H6: 0652792111 | I6: 43774 | N6: =Table421032323[[#This Row],[Column60]]*Table421032323[[#This Row],[Column9]] -> 0 | P6: =(Table421032323[[#This Row],[Column58]]/30/8)*(Table421032323[[#This Row],[Column54]]*1) -> 0 | R6: =(Table421032323[[#This Row],[Column58]]/30/8)*(Table421032323[[#This Row],[Column11]]*1.5) -> 0 | T6: =(Table421032323[[#This Row],[Column58]]/30/8)*(Table421032323[[#This Row],[Column56]]*2) -> 0 | V6: =(Table421032323[[#This Row],[Column58]]/30/8)*(Table421032323[[#This Row],[Column12]]*3) -> 0 | W6: =Table421032323[[#This Row],[Column10]]+Table421032323[[#This Row],[Column55]]+Table421032323[[#This Row],[Column57]]+Table421032323[[#This Row],[Column13]] -> 0 | X6: 700 | Y6: 0 | AG6: =Table421032323[[#This Row],[Column58]]+Table421032323[[#This Row],[Column14]]+Table421032323[[#This Row],[Column15]]+Table421032323[[#This Row],[Column16]]+Table421032323[[#This Row],[Column17]]+Table421032323[[#This Row],[Column19]]+Table421032323[[#This Row],[Column62]]+Table421032323[[#This Row],[Column63]]+Table421032323[[#This Row],[Column64]]+Table421032323[[#This Row],[Column65]]+Table421032323[[#This Row],[Column66]] -> 700 | AH6: 0 | AI6: 0 | AM6: 300 | AS6: =Table421032323[[#This Row],[Column20]]+Table421032323[[#This Row],[Column24]]+Table421032323[[#This Row],[Column25]]+Table421032323[[#This Row],[Column26]]+Table421032323[[#This Row],[Column27]]+Table421032323[[#This Row],[Column28]]+Table421032323[[#This Row],[Column29]]+Table421032323[[#This Row],[Column30]] -> 300 | AT6: =Table421032323[[#This Row],[Column31]]+Table421032323[[#This Row],[Column21]] -> 300 | AU6: =Table421032323[[#This Row],[Column67]]-Table421032323[[#This Row],[Column31]] -> 400 | AV6: =Table421032323[[#This Row],[Column70]]-Table421032323[[#This Row],[Column21]] -> 400 | AW6: 0 | AX6: 71400 | AY6: 4200 | AZ6: 60000 | BA6: 7200
A7: 6 | B7: 63006 | C7: นาง | D7: อรอนงค์ | E7: ปานดี | F7: ธุรการ 总务 | G7: แม่บ้าน | H7: 0652774709 | I7: 43774 | N7: =Table421032323[[#This Row],[Column60]]*Table421032323[[#This Row],[Column9]] -> 0 | P7: =(Table421032323[[#This Row],[Column58]]/30/8)*(Table421032323[[#This Row],[Column54]]*1) -> 0 | R7: =(Table421032323[[#This Row],[Column58]]/30/8)*(Table421032323[[#This Row],[Column11]]*1.5) -> 0 | T7: =(Table421032323[[#This Row],[Column58]]/30/8)*(Table421032323[[#This Row],[Column56]]*2) -> 0 | V7: =(Table421032323[[#This Row],[Column58]]/30/8)*(Table421032323[[#This Row],[Column12]]*3) -> 0 | W7: =Table421032323[[#This Row],[Column10]]+Table421032323[[#This Row],[Column55]]+Table421032323[[#This Row],[Column57]]+Table421032323[[#This Row],[Column13]] -> 0 | X7: 900 | Y7: 0 | AG7: =Table421032323[[#This Row],[Column58]]+Table421032323[[#This Row],[Column14]]+Table421032323[[#This Row],[Column15]]+Table421032323[[#This Row],[Column16]]+Table421032323[[#This Row],[Column17]]+Table421032323[[#This Row],[Column19]]+Table421032323[[#This Row],[Column62]]+Table421032323[[#This Row],[Column63]]+Table421032323[[#This Row],[Column64]]+Table421032323[[#This Row],[Column65]]+Table421032323[[#This Row],[Column66]] -> 900 | AH7: 0 | AI7: 0 | AM7: 300 | AS7: =Table421032323[[#This Row],[Column20]]+Table421032323[[#This Row],[Column24]]+Table421032323[[#This Row],[Column25]]+Table421032323[[#This Row],[Column26]]+Table421032323[[#This Row],[Column27]]+Table421032323[[#This Row],[Column28]]+Table421032323[[#This Row],[Column29]]+Table421032323[[#This Row],[Column30]] -> 300 | AT7: =Table421032323[[#This Row],[Column31]]+Table421032323[[#This Row],[Column21]] -> 300 | AU7: =Table421032323[[#This Row],[Column67]]-Table421032323[[#This Row],[Column31]] -> 600 | AV7: =Table421032323[[#This Row],[Column70]]-Table421032323[[#This Row],[Column21]] -> 600 | AW7: 0 | AX7: 72600 | AY7: 5400 | AZ7: 60000 | BA7: 7200
A8: 7 | B8: 63007 | C8: นาย | D8: สุพล | E8: แซ่เหมา | F8: พ่นสี 1 油漆 | G8: ล่ามจีน | H8: 0652750303 | I8: 43778 | N8: =Table421032323[[#This Row],[Column60]]*Table421032323[[#This Row],[Column9]] -> 0 | P8: =(Table421032323[[#This Row],[Column58]]/30/8)*(Table421032323[[#This Row],[Column54]]*1) -> 0 | R8: =(Table421032323[[#This Row],[Column58]]/30/8)*(Table421032323[[#This Row],[Column11]]*1.5) -> 0 | T8: =(Table421032323[[#This Row],[Column58]]/30/8)*(Table421032323[[#This Row],[Column56]]*2) -> 0 | V8: =(Table421032323[[#This Row],[Column58]]/30/8)*(Table421032323[[#This Row],[Column12]]*3) -> 0 | W8: =Table421032323[[#This Row],[Column10]]+Table421032323[[#This Row],[Column55]]+Table421032323[[#This Row],[Column57]]+Table421032323[[#This Row],[Column13]] -> 0 | X8: 0 | Y8: 150 | AG8: =Table421032323[[#This Row],[Column58]]+Table421032323[[#This Row],[Column14]]+Table421032323[[#This Row],[Column15]]+Table421032323[[#This Row],[Column16]]+Table421032323[[#This Row],[Column17]]+Table421032323[[#This Row],[Column19]]+Table421032323[[#This Row],[Column62]]+Table421032323[[#This Row],[Column63]]+Table421032323[[#This Row],[Column64]]+Table421032323[[#This Row],[Column65]]+Table421032323[[#This Row],[Column66]] -> 150 | AH8: 0 | AI8: 0 | AS8: =Table421032323[[#This Row],[Column20]]+Table421032323[[#This Row],[Column24]]+Table421032323[[#This Row],[Column25]]+Table421032323[[#This Row],[Column26]]+Table421032323[[#This Row],[Column27]]+Table421032323[[#This Row],[Column28]]+Table421032323[[#This Row],[Column29]]+Table421032323[[#This Row],[Column30]] -> 0 | AT8: =Table421032323[[#This Row],[Column31]]+Table421032323[[#This Row],[Column21]] -> 0 | AU8: =Table421032323[[#This Row],[Column67]]-Table421032323[[#This Row],[Column31]] -> 150 | AV8: =Table421032323[[#This Row],[Column70]]-Table421032323[[#This Row],[Column21]] -> 150 | AW8: 0 | AX8: 68100 | AY8: 900 | AZ8: 60000 | BA8: 7200
A9: 8 | B9: 63008 | C9: นาย | D9: ปิยะพงษ์ | E9: แปงวัน | F9: ประกอบ CNC 柜体 | G9: พนักงาน | H9: 0263980581 | I9: 43780 | N9: =Table421032323[[#This Row],[Column60]]*Table421032323[[#This Row],[Column9]] -> 0 | P9: =(Table421032323[[#This Row],[Column58]]/30/8)*(Table421032323[[#This Row],[Column54]]*1) -> 0 | R9: =(Table421032323[[#This Row],[Column58]]/30/8)*(Table421032323[[#This Row],[Column11]]*1.5) -> 0 | T9: =(Table421032323[[#This Row],[Column58]]/30/8)*(Table421032323[[#This Row],[Column56]]*2) -> 0 | V9: =(Table421032323[[#This Row],[Column58]]/30/8)*(Table421032323[[#This Row],[Column12]]*3) -> 0 | W9: =Table421032323[[#This Row],[Column10]]+Table421032323[[#This Row],[Column55]]+Table421032323[[#This Row],[Column57]]+Table421032323[[#This Row],[Column13]] -> 0 | X9: 0 | Y9: 735 | AG9: =Table421032323[[#This Row],[Column58]]+Table421032323[[#This Row],[Column14]]+Table421032323[[#This Row],[Column15]]+Table421032323[[#This Row],[Column16]]+Table421032323[[#This Row],[Column17]]+Table421032323[[#This Row],[Column19]]+Table421032323[[#This Row],[Column62]]+Table421032323[[#This Row],[Column63]]+Table421032323[[#This Row],[Column64]]+Table421032323[[#This Row],[Column65]]+Table421032323[[#This Row],[Column66]] -> 735 | AH9: 0 | AI9: 0 | AM9: 15 | AS9: =Table421032323[[#This Row],[Column20]]+Table421032323[[#This Row],[Column24]]+Table421032323[[#This Row],[Column25]]+Table421032323[[#This Row],[Column26]]+Table421032323[[#This Row],[Column27]]+Table421032323[[#This Row],[Column28]]+Table421032323[[#This Row],[Column29]]+Table421032323[[#This Row],[Column30]] -> 15 | AT9: =Table421032323[[#This Row],[Column31]]+Table421032323[[#This Row],[Column21]] -> 15 | AU9: =Table421032323[[#This Row],[Column67]]-Table421032323[[#This Row],[Column31]] -> 720 | AV9: =Table421032323[[#This Row],[Column70]]-Table421032323[[#This Row],[Column21]] -> 720 | AW9: 0 | AX9: 71610 | AY9: 4410 | AZ9: 60000 | BA9: 7200
A10: 9 | B10: 63009 | C10: นาย | D10: อภิชาต | E10: นพพลกกรัง | F10: ประกอบ CNC 柜体 | G10: ช่างคุมเครื่อง | H10: 0652727980 | I10: 43787 | N10: =Table421032323[[#This Row],[Column60]]*Table421032323[[#This Row],[Column9]] -> 0 | P10: =(Table421032323[[#This Row],[Column58]]/30/8)*(Table421032323[[#This Row],[Column54]]*1) -> 0 | R10: =(Table421032323[[#This Row],[Column58]]/30/8)*(Table421032323[[#This Row],[Column11]]*1.5) -> 0 | T10: =(Table421032323[[#This Row],[Column58]]/30/8)*(Table421032323[[#This Row],[Column56]]*2) -> 0 | V10: =(Table421032323[[#This Row],[Column58]]/30/8)*(Table421032323[[#This Row],[Column12]]*3) -> 0 | W10: =Table421032323[[#This Row],[Column10]]+Table421032323[[#This Row],[Column55]]+Table421032323[[#This Row],[Column57]]+Table421032323[[#This Row],[Column13]] -> 0 | X10: 600 | Y10: 2700 | Z10: 631.25 | AG10: =Table421032323[[#This Row],[Column58]]+Table421032323[[#This Row],[Column14]]+Table421032323[[#This Row],[Column15]]+Table421032323[[#This Row],[Column16]]+Table421032323[[#This Row],[Column17]]+Table421032323[[#This Row],[Column19]]+Table421032323[[#This Row],[Column62]]+Table421032323[[#This Row],[Column63]]+Table421032323[[#This Row],[Column64]]+Table421032323[[#This Row],[Column65]]+Table421032323[[#This Row],[Column66]] -> 3931.25 | AH10: 0 | AI10: 0 | AS10: =Table421032323[[#This Row],[Column20]]+Table421032323[[#This Row],[Column24]]+Table421032323[[#This Row],[Column25]]+Table421032323[[#This Row],[Column26]]+Table421032323[[#This Row],[Column27]]+Table421032323[[#This Row],[Column28]]+Table421032323[[#This Row],[Column29]]+Table421032323[[#This Row],[Column30]] -> 0 | AT10: =Table421032323[[#This Row],[Column31]]+Table421032323[[#This Row],[Column21]] -> 0 | AU10: =Table421032323[[#This Row],[Column67]]-Table421032323[[#This Row],[Column31]] -> 3931.25 | AV10: =Table421032323[[#This Row],[Column70]]-Table421032323[[#This Row],[Column21]] -> 3931.25 | AW10: 0 | AX10: 90787.5 | AY10: 23587.5 | AZ10: 60000 | BA10: 7200
A11: 10 | B11: 63010 | C11: นาย | D11: ทวิวัฒน์ | E11: หมื่นแล | F11: ประกอบCNC 柜体 | G11: ล่ามจีน | H11: 0653262442 | I11: 43788 | N11: =Table421032323[[#This Row],[Column60]]*Table421032323[[#This Row],[Column9]] -> 0 | P11: =(Table421032323[[#This Row],[Column58]]/30/8)*(Table421032323[[#This Row],[Column54]]*1) -> 0 | R11: =(Table421032323[[#This Row],[Column58]]/30/8)*(Table421032323[[#This Row],[Column11]]*1.5) -> 0 | T11: =(Table421032323[[#This Row],[Column58]]/30/8)*(Table421032323[[#This Row],[Column56]]*2) -> 0 | V11: =(Table421032323[[#This Row],[Column58]]/30/8)*(Table421032323[[#This Row],[Column12]]*3) -> 0 | W11: =Table421032323[[#This Row],[Column10]]+Table421032323[[#This Row],[Column55]]+Table421032323[[#This Row],[Column57]]+Table421032323[[#This Row],[Column13]] -> 0 | X11: 0 | Y11: 0 | AG11: =Table421032323[[#This Row],[Column58]]+Table421032323[[#This Row],[Column14]]+Table421032323[[#This Row],[Column15]]+Table421032323[[#This Row],[Column16]]+Table421032323[[#This Row],[Column17]]+Table421032323[[#This Row],[Column19]]+Table421032323[[#This Row],[Column62]]+Table421032323[[#This Row],[Column63]]+Table421032323[[#This Row],[Column64]]+Table421032323[[#This Row],[Column65]]+Table421032323[[#This Row],[Column66]] -> 0 | AH11: 0 | AI11: 0 | AS11: =Table421032323[[#This Row],[Column20]]+Table421032323[[#This Row],[Column24]]+Table421032323[[#This Row],[Column25]]+Table421032323[[#This Row],[Column26]]+Table421032323[[#This Row],[Column27]]+Table421032323[[#This Row],[Column28]]+Table421032323[[#This Row],[Column29]]+Table421032323[[#This Row],[Column30]] -> 0 | AT11: =Table421032323[[#This Row],[Column31]]+Table421032323[[#This Row],[Column21]] -> 0 | AU11: =Table421032323[[#This Row],[Column67]]-Table421032323[[#This Row],[Column31]] -> 0 | AV11: =Table421032323[[#This Row],[Column70]]-Table421032323[[#This Row],[Column21]] -> 0 | AW11: 0 | AX11: 67200 | AY11: 0 | AZ11: 60000 | BA11: 7200
A12: 11 | N12: =Table421032323[[#This Row],[Column60]]*Table421032323[[#This Row],[Column9]] -> 0 | P12: =(Table421032323[[#This Row],[Column58]]/30/8)*(Table421032323[[#This Row],[Column54]]*1) -> 0 | R12: =(Table421032323[[#This Row],[Column58]]/30/8)*(Table421032323[[#This Row],[Column11]]*1.5) -> 0 | T12: =(Table421032323[[#This Row],[Column58]]/30/8)*(Table421032323[[#This Row],[Column56]]*2) -> 0 | V12: =(Table421032323[[#This Row],[Column58]]/30/8)*(Table421032323[[#This Row],[Column12]]*3) -> 0 | W12: =Table421032323[[#This Row],[Column10]]+Table421032323[[#This Row],[Column55]]+Table421032323[[#This Row],[Column57]]+Table421032323[[#This Row],[Column13]] -> 0 | Y12: =Table421032323[[#This Row],[Column58]]*Table421032323[[#This Row],[Column54]] -> 0 | AG12: =Table421032323[[#This Row],[Column58]]+Table421032323[[#This Row],[Column14]]+Table421032323[[#This Row],[Column15]]+Table421032323[[#This Row],[Column16]]+Table421032323[[#This Row],[Column17]]+Table421032323[[#This Row],[Column19]]+Table421032323[[#This Row],[Column62]]+Table421032323[[#This Row],[Column63]]+Table421032323[[#This Row],[Column64]]+Table421032323[[#This Row],[Column65]]+Table421032323[[#This Row],[Column66]] -> 0 | AH12: 0 | AI12: 0 | AS12: =Table421032323[[#This Row],[Column20]]+Table421032323[[#This Row],[Column24]]+Table421032323[[#This Row],[Column25]]+Table421032323[[#This Row],[Column26]]+Table421032323[[#This Row],[Column27]]+Table421032323[[#This Row],[Column28]]+Table421032323[[#This Row],[Column29]]+Table421032323[[#This Row],[Column30]] -> 0 | AT12: =Table421032323[[#This Row],[Column31]]+Table421032323[[#This Row],[Column21]] -> 0 | AU12: =Table421032323[[#This Row],[Column67]]-Table421032323[[#This Row],[Column31]] -> 0 | AV12: =Table421032323[[#This Row],[Column70]]-Table421032323[[#This Row],[Column21]] -> 0 | AW12: 0 | AX12: 0 | AY12: 0

Sheet 2

Sheet 3

Sheet 4

Sheet 5

Sheet 6

Sheet 7

Sheet 8

Sheet 9

Sheet 10

Sheet 11

Sheet 12

Sheet 13

Sheet 14

Sheet 15

Sheet 16

Sheet 17

Sheet 18

Sheet 19

Sheet 20

Sheet 21

Sheet 22

Sheet 23

Sheet 24
